Cogmind - Beta 15 @@@ ROGUE MODE // 2025.08.06 @ 16:30:31 Player: Zoe Result: Destroyed by G-47 Trooper with Particle Gun Performance ------------- Evolutions (2) 1000 Regions Visited (3) 600 Robots Destroyed (29) 145 Value Destroyed (876) 876 Prototype IDs (0) 0 Alien Tech Used (0) 0 Bonus (0) 0 TOTAL SCORE: 2621 Bonus ------- None Cogmind --------- Core Integrity 0/550 Matter 276/300 Energy 271/275 System Corruption 3% Temperature Danger (417) Movement Core (200) Ox3 Location -8/Materials Parts ------- > --- POWER (1) -------- Deuterium Engine > --- PROPULSION (3) --- (None) > --- UTILITY (4) ------ Targeting Computer > --- WEAPON (3) ------- Light Assault Rifle > --- INVENTORY (5) ---- Deuterium Engine Aluminum Leg Signal Interpreter Improved Signal Interpreter Peak State ------------ > --- POWER ------------ Light Nuclear Core > --- PROPULSION ------- Aluminum Leg Aluminum Leg Aluminum Leg > --- UTILITY ---------- Small Storage Unit ECM Suite Scrap Shield > --- WEAPON ----------- Particle Gun Particle Gun > --- INVENTORY -------- Ion Engine Aluminum Leg Structural Scanner Signal Interpreter Mining Laser [Rating: 16] Favorites ----------- Power Ion Engine Engine Ion Engine Power Core Light Nuclear Core Propulsion Aluminum Leg Leg Aluminum Leg Flight Unit Cesium-ion Thruster Utility ECM Suite Device ECM Suite Storage Small Storage Unit Processor Targeting Computer Protection Scrap Shield Weapon Light Assault Rifle Energy Gun Particle Gun Ballistic Gun Light Assault Rifle Special Weapon Mining Laser Build | -11 -10 -10 -8 ------- Run | Yrd Mat Sub Mat Slots Evolved 4 | . . . 4 Power . | . . . . Propulsion 1 | . . . 1 Utility 2 | . . . 2 Weapon 1 | . . . 1 Parts Attached 30 | 7 8 1 14 Power 5 | 1 1 . 3 Engine 4 | 1 . . 3 Core 1 | . 1 . . Reactor . | . . . . Propulsion 10 | 2 3 . 5 Treads . | . . . . Leg 9 | 2 3 . 4 Wheel . | . . . . Hover . | . . . . Flight 1 | . . . 1 Utility 8 | 2 2 . 4 Device 4 | 1 2 . 1 Storage 2 | 1 . . 1 Processor 1 | . . . 1 Hackware . | . . . . Protection 1 | . . . 1 Artifact . | . . . . Weapon 7 | 2 2 1 2 Energy Gun 3 | . 1 1 1 Energy Cannon . | . . . . Ballistic Gun 3 | 2 . . 1 Ballistic Cannon . | . . . . Launcher . | . . . . Special Weapon 1 | . 1 . . Impact Weapon . | . . . . Slashing Weapon . | . . . . Piercing Weapon . | . . . . Special Melee Weapon . | . . . . Unidentified Prototypes . | . . . . Parts Lost 17 | . . . 17 Power 1 | . . . 1 Propulsion 7 | . . . 7 Utility 5 | . . . 5 Weapon 4 | . . . 4 Highest Loss Streak 9 | . . . 9 To Critical Strikes . | . . . . Average Backups 7 | 4 7 7 7 Power 1 | 1 2 1 1 Propulsion 2 | 1 2 2 2 Utility 2 | . 1 2 2 Weapon 1 | 1 2 1 . Tool/Special . | . . . . Unused Backups 8 | . 5 . 3 Power 2 | . 1 . 1 Propulsion 2 | . 2 . . Utility 3 | . 1 . 2 Weapon 1 | . 1 . . Tool/Special . | . . . . Average Slot Usage (%) 90 | . 99 100 80 Engine 8 | . 13 . 5 Core 2 | . . 14 3 Leg 25 | . 28 28 22 Device 14 | . 14 14 14 Storage 11 | . 14 14 8 Processor 3 | . . . 7 Energy Gun 9 | . . 28 16 Ballistic Gun 12 | . 27 . . Peak Build Rating 16 | 9 10 12 16 Average Rating 10 | 5 7 11 14 On Entrance 7 | . 9 10 12 Naked Turns . | . . . . Heaviest Build 41 | 13 16 18 41 Greatest Support 30 | 20 20 20 30 Greatest Overweight (x) 7 | 3 1 . 7 Average Overweight (x) . | . . . . Largest Inventory Capacity 10 | 8 8 8 10 Average Capacity 8 | 7 8 8 9 Most Carried 10 | 8 8 8 10 Average Carried 7 | 4 7 7 7 Final Capacity 8 | 8 8 8 5 Final Carried 8 | 6 8 8 4 Class Distribution -------------------- 63% | Mutant 35% | Scavenger-Mutant Dominant Class ---------------- Mutant | -10/Materials Scavenger-Mutant | -10/Subcaves Scavenger-Mutant | -8/Materials Resources | -11 -10 -10 -8 ----------- Run | Yrd Mat Sub Mat Matter Collected 722 | 286 191 15 230 Remotely . | . . . . Salvage Created 1002 | 95 311 . 596 Parts 45 | 11 13 . 21 Haulers Intercepted . | . . . . Recyclers Shooed . | . . . . Parts Field Recycled . | . . . . Retrieved Matter . | . . . . Parts Self-Destructed 9 | . . 9 . Prevented . | . . . . Kills | -11 -10 -10 -8 ------- Run | Yrd Mat Sub Mat Combat Hostiles Destroyed 25 | . 7 . 18 Guns 21 | . 7 . 14 Cannons 2 | . . . 2 Classes Destroyed 5 | 2 1 . 2 Tunneler 2 | 2 . . . Recycler 2 | 1 . . 1 Swarmer 7 | . . . 7 Grunt 16 | . 7 . 9 Sentry 2 | . . . 2 Best Kill Streak 4 | 2 3 . 4 Combat Bots Only 4 | . 3 . 4 Max Kills in Single Turn 1 | 1 1 . 1 Gunslinging . | . . . . Exploded . | . . . . Melee . | . . . . Uniques/NPCs Destroyed . | . . . . Combat | -11 -10 -10 -8 -------- Run | Yrd Mat Sub Mat Hostile Shots Fired 193 | . 32 5 156 Missed 45 | . 6 1 38 Hits 148 | . 26 4 118 Projectile 148 | . 26 4 118 Critical Strikes 6 | . . . 6 Damage Taken 2255 | . 341 83 1831 Core 699 | . 95 43 561 Absorbed by Shields . | . . . . Regen/Repaired (Parts) 34 | . 34 . . Core Remaining (%) 72 | 100 . 44 . Volleys Fired 116 | 8 40 . 68 Largest 3 | 2 2 . 3 Hottest 230 | 40 100 . 230 Shots Fired 213 | 16 78 . 119 Gun 205 | 16 76 . 113 Cannon . | . . . . Launcher . | . . . . Special 8 | . 2 . 6 Kinetic 100 | 16 76 . 8 Thermal 113 | . 2 . 111 Explosive . | . . . . Electromagnetic . | . . . . Robot Hit Streak 25 | 3 13 . 25 Robot Miss Streak 5 | 2 5 . 2 Penetration Max . | . . . . Secondary Targets . | . . . . Shots Hit Robots 148 | 10 48 . 90 Core Hits 57 | 5 19 . 33 Critical Kills . | . . . . Critical Parts Destroyed . | . . . . Critical Strikes 5 | . . . 5 Burn 5 | . . . 5 Melee Attacks . | . . . . Impact . | . . . . Slashing . | . . . . Piercing . | . . . . Sneak Attacks . | . . . . Combat Hostiles . | . . . . Follow-up Attacks . | . . . . Damage Inflicted 1936 | 86 397 . 1453 Guns 1859 | 86 397 . 1376 Cannons . | . . . . Explosions . | . . . . Melee . | . . . . Ramming 1 | . . . 1 Kinetic 540 | 86 397 . 57 Thermal 1395 | . . . 1395 Explosive . | . . . . Electromagnetic . | . . . . Impact . | . . . . Slashing . | . . . . Piercing . | . . . . Highest Corruption 3 | . . . 3 Average Corruption 1 | . . . 1 Corruption Purged . | . . . . Corruption Blocked . | . . . . Effects 4 | . . . 4 Message Errors 1 | . . . 1 Matter Fused 1 | . . . 1 Heat Flow Errors 1 | . . . 1 Data Loss (major) 1 | . . . 1 Overload Shots . | . . . . Overflow Damage . | . . . . Projectiles . | . . . . Explosions . | . . . . Melee . | . . . . Knockbacks . | . . . . Impact . | . . . . Kinetic . | . . . . Secondary . | . . . . Self-Inflicted Damage . | . . . . Shots . | . . . . Rammed . | . . . . Targets Rammed 1 | . . . 1 Kicked 1 | . . . 1 Crushed . | . . . . Highest Temperature 539 | . 25 . 539 Average Temperature 189 | . 8 . 214 Received Heat Transfer 1035 | . 183 24 828 Effects 25 | . . . 25 Shutdowns 5 | . . . 5 Energy Bleed 2 | . . . 2 Interference 7 | . . . 7 Matter Decay 2 | . . . 2 Short Circuit 1 | . . . 1 Damage (major) 8 | . . . 8 Siege Activations . | . . . . Martial Activations . | . . . . Shielding Activations . | . . . . Robots Disrupted . | . . . . Combat Hostiles . | . . . . Robots Corrupted . | . . . . Combat Hostiles . | . . . . Parts Fried . | . . . . Impact Corruptions . | . . . . Robots Melted 2 | . . . 2 Combat Hostiles 2 | . . . 2 Parts Melted 8 | . . . 8 Heat Transferred 3517 | . . . 3517 Parts Sabotaged . | . . . . Parts Stolen . | . . . . Parts Stripped . | . . . . Power Chain Reactions . | . . . . Alert | -11 -10 -10 -8 ------- Run | Yrd Mat Sub Mat Maximum Alert Level . | . . . . Low Security (%) 100 | 100 100 . 100 Level 1 . | . . . . Level 2 . | . . . . Level 3 . | . . . . Level 4 . | . . . . Level 5 . | . . . . High Security . | . . . . Max Security . | . . . . Peak Influence 84 | 10 76 . 84 Initial . | . . . . Average 20 | . 21 . 23 Influence Increases 739 | 15 253 . 471 Destroy 0b10 Robot/C 500 | . 140 . 360 Destroy 0b10 Robot/NC 20 | 15 . . 5 Destroy Leader 110 | . 40 . 70 Successful Hack 86 | . 71 . 15 Destroy Structure 8 | . 2 . 6 Lose Combat Pursuer 15 | . . . 15 Influence Decreases 701 | 15 209 44 433 Entered New Map 22 | . . 22 . Time Decay 520 | 15 209 22 274 Lost Part 150 | . . . 150 Purge Threat 9 | . . . 9 Squads Dispatched 4 | . 2 . 2 Investigation 4 | . 2 . 2 Extermination . | . . . . Reinforcement . | . . . . Assault . | . . . . Garrison . | . . . . Intercept . | . . . . Searches Triggered . | . . . . Construction Impeded . | . . . . Haulers Reinforced . | . . . . Active Scanning Responses . | . . . . Cargo Convoy Interrupts . | . . . . Stealth | -11 -10 -10 -8 --------- Run | Yrd Mat Sub Mat Distress Signals . | . . . . Communications Jammed . | . . . . Distress Signals . | . . . . Times Spotted 52 | . 13 7 32 Peak Tracking Total 7 | . 3 6 7 Tactical Retreats 9 | . 3 . 6 Traps | -11 -10 -10 -8 ------- Run | Yrd Mat Sub Mat Traps Triggered 3 | . 2 . 1 Indirectly . | . . . . Trap Hack Attempts . | . . . . Triggered . | . . . . Disarmed 2 | . 2 . . Reprogrammed . | . . . . Reused . | . . . . Traps Extracted . | . . . . Installed . | . . . . Triggered . | . . . . Machines | -11 -10 -10 -8 ---------- Run | Yrd Mat Sub Mat Machines Disabled . | . . . . Max in Single Turn . | . . . . Machines Repaired . | . . . . Machines Dismantled . | . . . . Machines Sabotaged . | . . . . Overloaded Fab Kills . | . . . . Hacking | -11 -10 -10 -8 --------- Run | Yrd Mat Sub Mat Machines Accessed 15 | . 8 1 6 Terminals 11 | . 6 . 5 Fabricators . | . . . . Repair Stations 1 | . 1 . . Recycling Units 2 | . 1 . 1 Scanalyzers . | . . . . Garrison Access . | . . . . Total Hacks 57 | . 29 4 24 Successful 41 | . 23 4 14 Failed 16 | . 6 . 10 Catastrophic 3 | . 1 . 2 Database Lockouts . | . . . . Manual 43 | . 23 2 18 Terminals 44 | . 22 . 22 Fabricators . | . . . . Repair Stations 3 | . 3 . . Recycling Units 6 | . 4 . 2 Scanalyzers . | . . . . Garrison Access . | . . . . Terminal Hacks 16 | . 7 4 5 Record 4 | . . 4 . Robot Analysis 4 | . 2 . 2 Level Access Points 1 | . 1 . . Branch Access Points 1 | . 1 . . Emergency Access Points 2 | . 1 . 1 Terminal Index 1 | . . . 1 Unreport Threat 1 | . . . 1 Disarm Traps 1 | . 1 . . Zone Layout 1 | . 1 . . Fabricator Hacks . | . . . . Repair Station Hacks 2 | . 2 . . Scan Component 1 | . 1 . . Repair 1 | . 1 . . Recycling Unit Hacks 2 | . 2 . . Report Inventory 1 | . 1 . . Retrieve Components 1 | . 1 . . Scanalyzer . | . . . . Garrison Access Hacks . | . . . . Unauthorized Hacks 21 | . 12 . 9 Terminals 19 | . 11 . 8 Track 8 | . 5 . 3 Botnet 11 | . 6 . 5 Fabricators . | . . . . Repair Stations . | . . . . Recycling Units 2 | . 1 . 1 Reject 2 | . 1 . 1 Scanalyzers . | . . . . Garrison Access . | . . . . Data Cores Recovered . | . . . . Used . | . . . . Hacking Detections 12 | . 6 . 6 Full Trace Events 9 | . 5 . 4 Feedback Events 1 | . . . 1 Corruption 1 | . . . 1 Feedback Blocked . | . . . . Robot Schematics Acquired . | . . . . Robots Built . | . . . . Authchips . | . . . . Time . | . . . . Total Robot Build Rating . | . . . . Part Schematics Acquired . | . . . . Parts Built . | . . . . Authchips . | . . . . Time . | . . . . Total Part Build Rating . | . . . . Parts Repaired 1 | . 1 . . Time 26 | . 26 . . Parts Recycled . | . . . . Recycled Matter . | . . . . Retrieved Matter . | . . . . Retrieved Components 3 | . 3 . . Parts Scanalyzed . | . . . . Part Schematics Acquired . | . . . . Parts Damaged . | . . . . Bothacking | -11 -10 -10 -8 ------------ Run | Yrd Mat Sub Mat Used RIF Installer . | . . . . Robots Hacked . | . . . . Non-combat . | . . . . Combat . | . . . . Robot Hacks Applied . | . . . . Relay Couplers Released . | . . . . Fabnet Peak Effective % . | . . . . Robots Rewired . | . . . . Allies Hacked . | . . . . Hacks Repelled . | . . . . Allies | -11 -10 -10 -8 -------- Run | Yrd Mat Sub Mat Total Allies . | . . . . Largest Group . | . . . . Highest-Rated Group . | . . . . Highest-Rated Ally . | . . . . Total Orders . | . . . . Ally Attacks . | . . . . Total Damage . | . . . . Kills . | . . . . Allies Corrupted . | . . . . Allies Melted . | . . . . Intel | -11 -10 -10 -8 ------- Run | Yrd Mat Sub Mat Active Infowar (turns) 1695 | 62 790 99 744 Sensors 93 | . . . 93 Terrain 69 | 62 7 . . Structural 531 | . 144 . 387 ECM 1482 | . 639 99 744 Robot Analysis Total 4 | . 2 . 2 Derelict Logs Recovered . | . . . . Drone Launches . | . . . . Drone Recoveries . | . . . . Exploration | -11 -10 -10 -8 ------------- Run | Yrd Mat Sub Mat Turns Passed 1861 | 160 794 99 808 Spaces Moved 978 | 98 470 74 336 Core 26 | 24 . . 2 Treads . | . . . . Legs 950 | 74 470 74 332 Wheels . | . . . . Hover . | . . . . Flight 2 | . . . 2 Fastest Speed 50 | 50 120 120 120 Average Speed 134 | 122 127 120 152 Slowest Speed 400 | 200 190 120 400 Overloaded Moves . | . . . . Propulsion Burnouts . | . . . . Robots Hopped . | . . . . Potential Cave-ins . | . . . . Cave-ins Triggered . | . . . . Exploration Rate (%) 25 | 6 66 8 23 Regions Visited 3 Branch Regions 1 Pre-discovered Areas . | . . . . Known Exits Taken . | . . . . Unknown Exits Taken 3 | 1 1 1 . Scrap Searched 1 | . . 1 . Spaces Dug 2 | . 2 . . Terrain Destroyed 5 | . 2 . 3 Melee . | . . . . Projectile 5 | . 2 . 3 AOE . | . . . . Terrain Rammed . | . . . . Walls Destroyed . | . . . . Machines Disabled . | . . . . Actions | -11 -10 -10 -8 --------- Run | Yrd Mat Sub Mat Total 1313 | 125 602 84 502 Wait 131 | . 62 7 62 Move 975 | 97 469 73 336 Hop . | . . . . Pick Up 34 | 13 8 1 12 Fast Attach 3 | . 2 . 1 Attach 19 | 7 . . 12 Detach . | . . . . Swap 18 | . 10 1 7 Drop 16 | . 11 2 3 Fire 116 | 8 40 . 68 Melee . | . . . . Ram . | . . . . Kick 1 | . . . 1 Crush . | . . . . Escape Stasis . | . . . . Rewire . | . . . . Trap . | . . . . Miscellaneous . | . . . . Route ------- -11/Scrapyard -10/Materials (discovered 6 exits: *Mat x3 / *Min x2 / *Sub) -10/Subcaves -8/Materials History --------- Turn | Location | Event 29 | -11/Scrapyard | Discovered new exit (range 16) 161 | -11/Scrapyard | Entered Materials 305 | -10/Materials | Build established: Mutant 393 | -10/Materials | Identified exit to Mines 520 | -10/Materials | Repaired Ion Engine 585 | -10/Materials | Discovered new exit (range 16) 723 | -10/Materials | Discovered new exit (range 7) 785 | -10/Materials | Identified exit to Materials 955 | -10/Materials | Entered Subcaves 986 | -10/Subcaves | Visited Clippyterm 990 | -10/Subcaves | Learned Factory fabricator intel 1027 | -10/Subcaves | Ambushed by swarm of Subdwellers 1033 | -10/Subcaves | Ambushed by Subdwellers from Twisted Machinery 1036 | -10/Subcaves | Discovered new exit (range 10) 1054 | -10/Subcaves | Core integrity fell below 50% 1054 | -10/Subcaves | Entered Materials 1054 | -8/Materials | Evolved 4 slots: Propulsion x1, Utility x2, Weapon x1 1283 | -8/Materials | Build established: Scavenger-Mutant 1681 | -8/Materials | Lost 5 parts (2n1u2w) 1792 | -8/Materials | Core integrity fell below 50% 1806 | -8/Materials | Core integrity fell below 20% 1862 | -8/Materials | Destroyed by G-47 Trooper with Particle Gun Last Messages --------------- System corrupted: Matter fused (-6). S-10 Pest destroyed. K-01 Serf collects debris. S-10 Pest destroyed. K-01 Serf collects debris. Critical hit (Burn: +37). G-47 Trooper suffers critical hit (Burn). G-47 Trooper destroyed. The unstable cave ceiling collapses. Cesium-ion Thruster destroyed. Acquired Lgt. Assault Rifle. System corrupted: Substantial component data lost. K-01 Serf collects debris. Med. Storage Unit destroyed. K-01 Serf collects debris. ECM Suite destroyed. Critical hit (Burn: +37). System corrupted: Heat flow error (+274). Pulse Rifle destroyed. Map ----- +----------------------------------------------------+ | ?????????????????????????????????????????????????? | | ?????????????????????????????????????????????????? | | ?????????????????????????????????????????????????? | | ??????????????????????????????????????+####??????? | | ?????????????????????????????????????? #??????? | | ?????????????????????????????????????? +??????? | | ?????????????????????????????????????? #??????? | | ??????????????????????????????????????# #??????? | | ??????????????????????????????????????# #??????? | | ??????????????????????????????????????# #??????? | | ??????????????????????????????????????# +??????? | | ??????????????????????????????????????# #??????? | | ??????????????????????????????????????# #??????? | | ?????????????????????????????????????## ##?????? | | ????????????????????????? ########## !#?????? | | ???????????????????????######## ^ #?????? | | ???????????????????????######## T #?????? | | ???????????????????????## % !![ #?????? | | ???????????????????????## ### #### #?????? | | ???????????????????????## # ##+######??? | | ???????????????????????## # ! #??? | | ???????????????????????## # """ #??? | | ???????????????????????##=# """ #??? | | ???????????????????????##[m """ #??? | | ???????????????????????##g# #??? | | ???????????????????????##@# """ #??? | | ???????????????????????## # """ #??? | | ???????????????????????## # # ## """ #??? | | ???????????????????????## #### #### ???? | | ???????????????????????## ##?######??########????? | | ???????????????????????## #########??????????????? | | ???????????????????????## #########??????????????? | | ???????????????????????## # ##??????????????? | | ???????????????????????## # ##??????????????? | | ???????????????????????## # ##??????????????? | | ???????????????????????## / ##??????????????? | | ???????????????????????## # ! ##??????????????? | | ???????????????????????## # ##??????????????? | | ???????????????????????## #####/###??????????????? | | ???????????????????????## ##### ##############???? | | ???????????????????????## ##?## ##############???? | | ???????????????????????## ##?## ## # ##???? | | ???????????????????????## ##?## # # ###### | | ???????????????????????## ##?## # # """ ###### | | ???????????????????????## ##?## # # """ + | | ???????????????????????## ##### # # """ # | | ???????????????????????## ##### # # # | | ?????????????????????? ## %%+ ######+# ! | | ?????????????????????? ########*# ###### # | | ?????????????????????? # ***###%# ###### # """ | +----------------------------------------------------+ Best States ------------- Heat Dissipation 31 Energy Generation 14 Energy Capacity 275 Matter Stores 300 Matter Capacity 300 Sight Range 16 Robot Scan Range 14 Terrain Scan Range 16 Terrain Scan Density 10 ECM Strength 1 Armor Coverage 800 Evasion (%) 55 Targeting Accuracy 5 Item Schematics ----------------- None Robot Schematics ------------------ None Fabricated ------------ Nothing Repaired ---------- Ion Engine | 43% | -10/Materials Alien Tech Used ----------------- None Achievements -------------- Armchair Analyst Challenges ------------ None Game ------ Seed ScatterScrapoidRailcannon Manual? 0 Play Time 00:35:18 Cumulative 23.1 hours Start 2025.08.06 @ 14:55:52 End 2025.08.06 @ 16:30:31 Sessions 1 Manual Loads 0 Difficulty Rogue Special Mode None Game No. 45 Rogue 42 Adventurer 3 Explorer 0 Win Type - Total 0 Types 0/0/0/0/0/0/0/0/0/0 Lore% 15 Gallery% 19 Achievement% 21 Wizard Run 0 Options --------- Layout 1 ASCII 0 Keyboard 0 Movement Mouse Keybinds 0 Fullscreen 1 Font 24/Smallcaps Map View 50x35 Zoom Use 0% Tactical HUD 0 Map Filters NONE Filters NONE Steam 1 RUN: 5ad18335-755c-48c6-b311-277e6df65e3c